[Event "13th Dolomiti-Forni di Sopra-A 2022"]
[Site "Forni di Sopra"]
[Date "2022.06.16"]
[Round "6.5"]
[White "Korneev, Oleg"]
[Black "Ceres, Dragos"]
[Result "1-0"]
[ECO "C84"]
[WhiteElo "2521"]
[BlackElo "2380"]
[Annotator "TA"]
[PlyCount "73"]
[EventDate "2022.06.13"]
[EventType "swiss"]
[EventCountry "ITA"]
[SourceTitle "playchess.com"]
[Source "ChessBase"]
[SourceQuality "1"]
[TimeControl "40/5400+30:1800+30"]

{[%evp 17,72,19,21,5,52,44,34,19,35,35,58,33,37,9,8,16,24,15,117,125,112,102,109,92,133,154,168,156,264,260,273,241,264,244,264,245,293,266,387,382,929,928,1060,786,918,899,1070,1060,1606,1551,29993,29994,29995,29996,29996,29997,29999]} 1. e4 {[%emt 0:00:02]} e5 {[%emt 0:14:55]} 2. Nf3 {[%emt 0:00:05]} Nc6 {[%emt 0:00:29]} 3. Bb5 {[%emt 0:00:03]} a6 {[%emt 0:00:05]} 4. Ba4 {[%emt 0:00:03]} Nf6 {[%emt 0:00:18]} 5. O-O {[%emt 0:02:06]} b5 {[%emt 0:00:05]} 6. Bb3 {[%emt 0:00:05]} Bb7 {[%emt 0:00:03]} 7. d3 {[%emt 0:00:16]} Be7 {[%emt 0:00:09]} 8. Nc3 {[%emt 0:00:09]} O-O {[%emt 0:00:14]} 9. Bd2 {[%emt 0:00:04]} d6 {[%emt 0:06:55]} 10. Nd5 {[%emt 0:00:13] C84: Closed Ruy Lopez: Unusual White 6th moves.} h6 {[%emt 0:06:35] [#]} (10... Nxd5 $11 11. Bxd5 Rb8) 11. a4 $146 {[%emt 0:06:28]} ({Predecessor:} 11. h3 Qd7 12. c4 Nd8 13. Ba5 Ne6 14. Rc1 Rac8 15. a4 Nxd5 16. cxd5 Nc5 17. Bb4 Nxa4 18. Bxa4 bxa4 {1-0 (54) Klimakovs,S (2300)-Yatzenko,A (2356) Chess.com INT 2017}) 11... Qd7 {[%emt 0:00:53]} 12. h3 {[%emt 0:04:25] White is slightly better.} (12. Ne3 {is interesting.} Rfc8 13. Nf5 Bf8 14. N3h4) 12... Rfb8 {[%emt 0:11:11]} 13. Re1 {[%emt 0:16:16]} Bd8 {[%emt 0:11:19]} 14. c3 {[%emt 0:15:49]} Na5 {[%emt 0:02:25]} 15. Nxf6+ {[%emt 0:02:50]} Bxf6 {[%emt 0:00:08]} 16. Bc2 {[%emt 0:01:05]} c5 {[%emt 0:00:19]} 17. Nh2 {[%emt 0:04:27]} Bg5 {[%emt 0:07:47]} (17... Qd8 $11 {remains equal.}) 18. Bxg5 $16 {[%emt 0:01:10] White stays focused until the end.} hxg5 {[%emt 0:00:04]} 19. Qh5 {[%emt 0:06:20]} b4 {[%emt 0:06:02]} 20. Qxg5 {[%emt 0:00:43]} f6 {[%emt 0:01:37]} 21. Qg3 {[%emt 0:03:24]} bxc3 {[%emt 0:02:57]} 22. bxc3 {[%emt 0:00:46]} Bc6 {[%emt 0:00:05]} (22... Bc8 $16 {is a better defense.} 23. Ng4 Qd8) 23. Ng4 $18 {[%emt 0:01:25] Black must now prevent Nxf6+.} Kf7 {[%emt 0:05:24]} 24. Ne3 {[%emt 0:04:14]} Rb2 {[%emt 0:02:20]} 25. Bd1 {[%emt 0:00:54][%cal Bc2d1,Bd1g4,Bg4f5][%mdl 32]} Rh8 {[%emt 0:01:46]} 26. Bg4 {[%emt 0:02:38]} ({Don't take} 26. Nf5 $6 g6 $16) 26... Qd8 {[%emt 0:00:36]} 27. Bf5 {[%emt 0:05:18]} Rh6 {[%emt 0:04:26]} (27... Rb3 $142 28. Rec1 Rb2) 28. Rab1 {[%emt 0:02:16]} Ra2 {[%emt 0:04:04]} (28... Rxb1 29. Rxb1 Be8) 29. Qg4 {[%emt 0:05:00] aiming for Be6+.} Qe7 {[%emt 0:03:11] Against Be6+} 30. Nd5 {[%emt 0:02:09]} Bxd5 {[%emt 0:02:00]} 31. exd5 {[%emt 0:00:06]} g6 {[%emt 0:01:05] [#]} 32. Rb8 $1 {[%emt 0:01:12][%cal Oe1b1] Threatens to win with Reb1!} Kg7 {[%emt 0:00:24]} (32... Nb7 33. Be6+) 33. Reb1 {[%emt 0:00:28][%cal Of5g6] White threatens Bxg6! and mate.} c4 {[%emt 0:01:11] [#]} 34. Bxg6 $1 {[%emt 0:00:46][%mdl 512] White mates.} Rxg6 {[%emt 0:01:35] [#]} (34... f5 35. Bxf5+) 35. Rg8+ $3 {[%emt 0:00:08][%mdl 576] Skewer, Deflection, Decoy} Kxg8 {[%emt 0:00:07]} 36. Qxg6+ {[%emt 0:00:03]} Qg7 {[%emt 0:00:08]} 37. Rb8# {[%emt 0:00:04] Weighted Error Value: White=0.10 (very precise) /Black=0.66} 1-0

[Event "13th Dolomiti-Forni di Sopra-A 2022"]
[Site "Forni di Sopra"]
[Date "2022.06.16"]
[Round "6.6"]
[White "Cappelletto, Joshuaede"]
[Black "Ceschia, Ivano"]
[Result "1-0"]
[ECO "B48"]
[WhiteElo "2276"]
[BlackElo "2252"]
[Annotator "NA RC"]
[PlyCount "29"]
[EventDate "2022.06.13"]
[EventType "swiss"]
[EventCountry "ITA"]
[SourceTitle "playchess.com"]
[Source "ChessBase"]
[SourceQuality "1"]
[TimeControl "40/5400+30:1800+30"]

1. e4 {[%emt 0:01:30]} c5 {[%emt 0:00:17]} 2. Nf3 {[%emt 0:00:12]} Nc6 {[%emt 0:00:04]} 3. Nc3 {[%emt 0:00:15]} e6 {[%emt 0:01:25]} 4. d4 {[%emt 0:00:05]} cxd4 {[%emt 0:00:05]} 5. Nxd4 {[%emt 0:00:05]} Qc7 {[%emt 0:00:35]} 6. Be3 {[%emt 0:00:07]} Nf6 {[%emt 0:00:44]} 7. Qf3 {[%emt 0:00:14]} d6 {[%emt 0:17:43]} 8. O-O-O {[%emt 0:10:14]} a6 {[%emt 0:12:40]} 9. h3 {[%emt 0:16:12]} Ne5 {[%emt 0:05:28]} 10. Qe2 {[%emt 0:06:47]} b5 {[%emt 0:01:35]} 11. f4 {[%emt 0:00:49]} b4 {[%emt 0:07:58]} 12. fxe5 {[%emt 0:07:27]} dxe5 {[%emt 0:00:17]} 13. Ndb5 {[%emt 0:07:26]} axb5 {[%emt 0:01:41]} 14. Nxb5 {[%emt 0:00:05]} Qc6 {[%emt 0:37:09]} 15. Qc4 {[%emt 0:02:53]} 1-0

[Event "13th Dolomiti-Forni di Sopra-A 2022"]
[Site "Forni di Sopra"]
[Date "2022.06.16"]
[Round "6.7"]
[White "Podetti, Davide"]
[Black "Goh, Zi Han"]
[Result "1/2-1/2"]
[ECO "B52"]
[WhiteElo "2238"]
[BlackElo "2087"]
[Annotator "NA RC"]
[PlyCount "53"]
[EventDate "2022.06.13"]
[EventType "swiss"]
[EventCountry "ITA"]
[SourceTitle "playchess.com"]
[Source "ChessBase"]
[SourceQuality "1"]
[TimeControl "40/5400+30:1800+30"]

1. e4 {[%emt 0:00:15]} c5 {[%emt 0:01:00]} 2. Nf3 {[%emt 0:00:10]} d6 {[%emt 0:00:14]} 3. Bb5+ {[%emt 0:00:11]} Bd7 {[%emt 0:00:15]} 4. Bxd7+ {[%emt 0:00:08]} Qxd7 {[%emt 0:00:08]} 5. O-O {[%emt 0:00:08]} Nf6 {[%emt 1:31:23]} 6. Qe2 {[%emt 0:00:07]} Nc6 {[%emt 0:00:00]} 7. c3 {[%emt 0:00:11]} e6 {[%emt 0:00:00]} 8. d4 {[%emt 0:00:26]} cxd4 {[%emt 0:00:00]} 9. cxd4 {[%emt 0:00:04]} d5 {[%emt 0:00:00]} 10. e5 {[%emt 0:00:06]} Ne4 {[%emt 0:00:00]} 11. Rd1 {[%emt 0:00:06]} Be7 {[%emt 0:00:00]} 12. Ne1 {[%emt 0:00:35]} f6 {[%emt 0:00:00]} 13. f3 {[%emt 0:11:33]} Ng5 {[%emt 0:00:00]} 14. Bxg5 {[%emt 0:00:23]} fxg5 {[%emt 0:00:00]} 15. Nc3 {[%emt 0:00:55]} O-O {[%emt 0:00:00]} 16. Qe3 {[%emt 0:02:22]} Rf4 {[%emt 0:00:00]} 17. Ne2 {[%emt 0:03:44]} Rf5 {[%emt 0:00:00]} 18. Rac1 {[%emt 0:10:18]} Raf8 {[%emt 0:00:00]} 19. Nd3 {[%emt 0:01:17]} Qd8 {[%emt 0:00:00]} 20. Nc5 {[%emt 0:06:28]} Bxc5 {[%emt 0:00:00]} 21. Rxc5 {[%emt 0:00:09]} Qb6 {[%emt 0:00:00]} 22. b3 {[%emt 0:05:23]} h6 {[%emt 0:00:00]} 23. h3 {[%emt 0:09:50]} R5f7 {[%emt 0:00:00]} 24. Rdc1 {[%emt 0:01:40]} Qb4 {[%emt 0:00:00]} 25. Qd3 {[%emt 0:08:48]} a6 {[%emt 0:00:00]} 26. Kh1 {[%emt 0:02:39]} Re7 {[%emt 0:00:00]} 27. Kh2 {[%emt 0:08:35]} 1/2-1/2

[Event "13th Dolomiti-Forni di Sopra-A 2022"]
[Site "Forni di Sopra"]
[Date "2022.06.16"]
[Round "6.8"]
[White "Vezzosi, Paolo"]
[Black "Higatsberger, Michael"]
[Result "1-0"]
[ECO "D33"]
[WhiteElo "2225"]
[BlackElo "2046"]
[Annotator "NA RC"]
[PlyCount "43"]
[EventDate "2022.06.13"]
[EventType "swiss"]
[EventCountry "ITA"]
[SourceTitle "playchess.com"]
[Source "ChessBase"]
[SourceQuality "1"]
[TimeControl "40/5400+30:1800+30"]

1. c4 {[%emt 0:00:04]} e6 {[%emt 0:00:11]} 2. Nc3 {[%emt 0:00:16]} d5 {[%emt 0:00:08]} 3. d4 {[%emt 0:00:05]} c5 {[%emt 0:00:07]} 4. cxd5 {[%emt 0:00:08]} exd5 {[%emt 0:00:05]} 5. Nf3 {[%emt 0:00:10]} Nc6 {[%emt 0:00:07]} 6. g3 {[%emt 0:00:03]} Nf6 {[%emt 0:00:12]} 7. Bg2 {[%emt 0:00:06]} cxd4 {[%emt 0:00:32]} 8. Nxd4 {[%emt 0:00:07]} Bc5 {[%emt 0:00:12]} 9. Nb3 {[%emt 0:00:08]} Bb6 {[%emt 0:00:08]} 10. O-O {[%emt 0:01:05]} d4 {[%emt 0:00:09]} 11. Na4 {[%emt 0:00:41]} O-O {[%emt 0:00:12]} 12. Nxb6 {[%emt 0:01:28]} axb6 {[%emt 0:00:12]} 13. Qd3 {[%emt 0:05:10]} Be6 {[%emt 0:08:04]} 14. Bd2 {[%emt 0:04:33]} Ra4 {[%emt 0:05:09]} 15. Rfc1 {[%emt 0:03:58]} Qa8 {[%emt 0:03:22]} 16. a3 {[%emt 0:04:55]} Rd8 {[%emt 0:17:09]} 17. Bg5 {[%emt 0:04:50]} Ne5 {[%emt 0:01:58]} 18. Qb5 {[%emt 0:05:59]} Nc4 {[%emt 0:01:18]} 19. Bxf6 {[%emt 0:11:16]} gxf6 {[%emt 0:00:38]} 20. Bxb7 {[%emt 0:06:21]} Qa7 {[%emt 0:04:41]} 21. Bc6 {[%emt 0:01:23]} Nxb2 {[%emt 0:00:46]} 22. Nd2 {[%emt 0:00:34]} 1-0

[Event "13th Dolomiti-Forni di Sopra-A 2022"]
[Site "Forni di Sopra"]
[Date "2022.06.16"]
[Round "6.9"]
[White "Molina, Fabrizio"]
[Black "Harshita Guddanti"]
[Result "0-1"]
[ECO "A25"]
[WhiteElo "2124"]
[BlackElo "2208"]
[Annotator "NA RC"]
[PlyCount "50"]
[EventDate "2022.06.13"]
[EventType "swiss"]
[EventCountry "ITA"]
[SourceTitle "playchess.com"]
[Source "ChessBase"]
[SourceQuality "1"]
[TimeControl "40/5400+30:1800+30"]

1. c4 {[%emt 0:00:24]} e5 {[%emt 0:00:04]} 2. g3 {[%emt 0:00:05]} Nc6 {[%emt 0:00:40]} 3. Bg2 {[%emt 0:00:40]} f5 {[%emt 0:00:05]} 4. Nc3 {[%emt 0:00:19]} Nf6 {[%emt 0:00:14]} 5. d3 {[%emt 0:00:38]} Bb4 {[%emt 0:01:05]} 6. a3 {[%emt 0:11:08]} Bxc3+ {[%emt 0:00:09]} 7. bxc3 {[%emt 0:00:06]} O-O {[%emt 0:00:51]} 8. Nf3 {[%emt 0:06:29]} Qe8 {[%emt 0:01:02]} 9. Bg5 {[%emt 0:03:55]} d6 {[%emt 0:05:32]} 10. Bxf6 {[%emt 0:08:27]} Rxf6 {[%emt 0:00:43]} 11. Nd2 {[%emt 0:00:30]} Bd7 {[%emt 0:01:46]} 12. c5 {[%emt 0:13:58]} Nd8 {[%emt 0:04:48]} 13. cxd6 {[%emt 0:02:50]} cxd6 {[%emt 0:00:17]} 14. Bd5+ {[%emt 0:02:13]} Kh8 {[%emt 0:01:30]} 15. O-O {[%emt 0:01:04]} Bc6 {[%emt 0:04:28]} 16. Qb3 {[%emt 0:03:50]} Qh5 {[%emt 0:03:08]} 17. Rfe1 {[%emt 0:02:07]} f4 {[%emt 0:04:27]} 18. Bxc6 {[%emt 0:12:00]} bxc6 {[%emt 0:00:18]} 19. Qb4 {[%emt 0:09:44]} Ne6 {[%emt 0:06:47]} 20. Rab1 {[%emt 0:04:03]} Raf8 {[%emt 0:04:21]} 21. Qxd6 {[%emt 0:00:28]} fxg3 {[%emt 0:01:30]} 22. fxg3 {[%emt 0:00:59]} Rf2 {[%emt 0:14:50]} 23. Nf1 {[%emt 0:00:28]} Qh3 {[%emt 0:01:44]} 24. Qxc6 {[%emt 0:01:04]} Ng5 {[%emt 0:01:43]} 25. Qh1 {[%emt 0:01:12]} Qxf1+ {[%emt 0:00:17]} 0-1

[Event "13th Dolomiti-Forni di Sopra-A 2022"]
[Site "Forni di Sopra"]
[Date "2022.06.16"]
[Round "6.10"]
[White "Vezzani, Stefano"]
[Black "Kozlovic, Jernej"]
[Result "1/2-1/2"]
[ECO "A07"]
[WhiteElo "2135"]
[BlackElo "2005"]
[Annotator "NA RC"]
[PlyCount "45"]
[EventDate "2022.06.13"]
[EventType "swiss"]
[EventCountry "ITA"]
[SourceTitle "playchess.com"]
[Source "ChessBase"]
[SourceQuality "1"]
[TimeControl "40/5400+30:1800+30"]

1. Nf3 {[%emt 0:00:05]} d5 {[%emt 0:00:31]} 2. g3 {[%emt 0:00:30]} Nf6 {[%emt 0:00:42]} 3. Bg2 {[%emt 0:00:07]} c6 {[%emt 0:00:35]} 4. O-O {[%emt 0:00:07]} Bf5 {[%emt 0:00:22]} 5. d3 {[%emt 0:00:09]} e6 {[%emt 0:02:00]} 6. Nbd2 {[%emt 0:00:21]} h6 {[%emt 0:02:05]} 7. Qe1 {[%emt 0:00:09]} Bh7 {[%emt 0:02:42]} 8. e4 {[%emt 0:00:27]} Nbd7 {[%emt 0:01:14]} 9. e5 {[%emt 0:02:48]} Ng8 {[%emt 0:01:39]} 10. Qe2 {[%emt 0:00:12]} Bc5 {[%emt 0:02:33]} 11. d4 {[%emt 0:03:39]} Bb6 {[%emt 0:01:00]} 12. c4 {[%emt 0:00:48]} dxc4 {[%emt 0:16:08]} 13. Nxc4 {[%emt 0:00:27]} Bc7 {[%emt 0:00:07]} 14. b3 {[%emt 0:02:56]} Ne7 {[%emt 0:03:16]} 15. Ba3 {[%emt 0:07:26]} O-O {[%emt 0:01:05]} 16. Nfd2 {[%emt 0:02:29]} Re8 {[%emt 0:04:58]} 17. Ne4 {[%emt 0:01:22]} Bxe4 {[%emt 0:04:41]} 18. Qxe4 {[%emt 0:04:34]} Nb6 {[%emt 0:02:29]} 19. Rfd1 {[%emt 0:02:37]} Nbd5 {[%emt 0:01:49]} 20. Rac1 {[%emt 0:01:55]} a5 {[%emt 0:03:40]} 21. Nd6 {[%emt 0:08:29]} Bxd6 {[%emt 0:00:48]} 22. Bxd6 {[%emt 0:00:07]} a4 {[%emt 0:06:13]} 23. Qc2 {[%emt 0:08:27]} 1/2-1/2

[Event "13th Dolomiti-Forni di Sopra-A 2022"]
[Site "Forni di Sopra"]
[Date "2022.06.16"]
[Round "6.11"]
[White "Caruso, Augusto"]
[Black "Pozzari, Simone"]
[Result "0-1"]
[ECO "B90"]
[WhiteElo "2127"]
[BlackElo "2184"]
[Annotator "TA"]
[PlyCount "108"]
[EventDate "2022.06.13"]
[EventType "swiss"]
[EventCountry "ITA"]
[SourceTitle "playchess.com"]
[Source "ChessBase"]
[SourceQuality "1"]
[TimeControl "40/5400+30:1800+30"]

{[%evp 13,108,0,11,7,23,28,50,34,45,0,1,0,0,0,0,-63,0,0,0,0,-5,0,0,-81,-102,-69,-59,-71,194,-132,437,-239,-201,-310,-277,-322,14,7,0,0,0,0,0,-108,-96,-96,-97,-97,-102,-102,-94,-100,-93,-95,-93,-91,-72,-93,-92,-234,-60,-210,-214,-243,-236,-232,-201,-223,-215,-362,-361,-430,-416,-385,-389,-1108,-1102,-837,-830,-674,-621,-1420,-1437,-1372,-1216,-2616,-1929,-4674,-4108,-29963,-29965,-29974,-29975,-29974,-29971,-4634,-4618]} 1. e4 {[%emt 0:00:22]} c5 {[%emt 0:00:06]} 2. Nf3 {[%emt 0:00:07]} d6 {[%emt 0:00:04]} 3. d4 {[%emt 0:01:02]} cxd4 {[%emt 0:00:06]} 4. Nxd4 {[%emt 0:00:04]} Nf6 {[%emt 0:00:09]} 5. Nc3 {[%emt 0:00:05]} a6 {[%emt 0:00:01]} 6. h3 {[%emt 0:00:08]} e5 {[%emt 0:00:03]} 7. Nde2 {[%emt 0:00:13]} b5 {[%emt 0:02:04]} 8. g4 {[%emt 0:00:33] 8.Ng3 is the hot move. B90: Sicilian Najdorf: Unusual White 6th moves, 6 Be3 Ng4 and 6 Be3 e5.} Bb7 {[%emt 0:01:06]} 9. Bg2 {[%emt 0:01:07]} h6 {[%emt 0:03:56]} 10. Be3 {[%emt 0:06:48] White is slightly better.} Nbd7 {[%emt 0:02:16]} 11. a4 {[%emt 0:05:43]} b4 {[%emt 0:06:35]} 12. Nd5 {[%emt 0:00:09]} Nxd5 {[%emt 0:02:40]} 13. exd5 {[%emt 0:00:10] [#]} a5 $146 {[%emt 0:11:17]} ({Predecessor:} 13... Be7 14. a5 Rb8 15. Ng3 g6 16. Qd2 Bc8 17. b3 Rb5 18. O-O Bh4 19. Bxh6 Nc5 {1-0 (57) Vatter,H (2278)-Dinger,F (2360) Germany 2015}) 14. O-O {[%emt 0:02:35]} ({Better is} 14. Ng3 $11) 14... Be7 ({Black should play} 14... Ba6 $1 $15) 15. Ng3 $11 {[%emt 0:04:21]} O-O {[%emt 0:22:23]} 16. Nf5 Re8 {[%emt 0:03:17]} 17. Qd2 {[%emt 0:19:18]} Bf8 {[%emt 0:03:11]} 18. g5 {[%emt 0:02:48]} (18. Rfc1 $11) 18... hxg5 {[%emt 0:00:56]} 19. Bxg5 {[%emt 0:00:26]} Qc7 20. Rfe1 {[%emt 0:12:13]} Nb6 $2 {[%emt 0:04:43][%mdl 8192] [#]} (20... f6 $17 {stays on course.} 21. Be3 g6) 21. Rad1 $2 {[%emt 0:06:48]} (21. Bf6 $1 $18 {[%mdl 512]} Bxd5 (21... Nxd5 22. Bxd5) 22. Nxg7) 21... Nxa4 $2 {[%emt 0:02:51][%mdl 8192] [#]} (21... Bc8 $1 $17 {[%cal Rc8f5]} 22. Nd4 Nxa4) 22. Qe2 $4 {[%mdl 8192]} (22. Bf6 $1 $18 {[%mdl 512] was the only winning move.} gxf6 (22... Nc5 23. Qg5) 23. Qe2) 22... Bc8 {[%emt 0:07:02]} 23. Be4 {[%emt 0:06:41]} (23. Ng3 $142) 23... Nc5 {[%emt 0:05:12]} 24. Qf3 a4 $2 {[%emt 0:14:32] [#]} ({Black should try} 24... Qd7 $19 25. Ng3 Nxe4 26. Nxe4 Qxh3 27. Qxh3 Bxh3) 25. Nh6+ $1 {[%emt 0:17:56]} gxh6 {[%emt 0:01:00]} 26. Bf6 {[%emt 0:00:21] White wants to mate with Qg2+.} Nxe4 27. Rxe4 {[%emt 0:03:15][%cal Oe4g4] White threatens Rg4+! and mate.} Qd7 {[%emt 0:04:54]} (27... Qxc2 $5 {[%cal Ra4a3]} 28. Kh2 Kh7 $11) 28. Kh2 {[%emt 0:04:49]} (28. Rg4+ $11 {keeps the balance.} Qxg4+ 29. hxg4) 28... Qf5 {[%emt 0:01:03]} 29. Rg1+ {[%emt 0:00:27]} Kh7 {[%emt 0:00:08]} 30. Qg3 {[%emt 0:00:22][%csl Gg1][%cal Rg3g8] [#]} Qxh3+ $1 {[%emt 0:01:42]} 31. Qxh3 {[%emt 0:00:05]} Bxh3 {[%emt 0:00:02]} 32. Kxh3 {[%emt 0:00:07]} Be7 {[%emt 0:00:15]} 33. Bxe7 {[%emt 0:05:24]} Rxe7 {[%emt 0:00:02]} 34. Rxb4 $17 {[%emt 0:00:02][%mdl 4096] Endgame KRR-KRR} Rc7 {[%emt 0:00:24]} 35. c4 {[%emt 0:00:11]} a3 36. Ra1 {[%emt 0:00:48]} (36. bxa3 $17 Rxa3+ 37. Rg3 Rxg3+ 38. Kxg3) 36... Rca7 $2 {[%emt 0:01:59]} (36... a2 $19 {...Kg6 is the strong threat.} 37. b3 Rca7) 37. b3 {[%emt 0:00:29]} (37. Rxa3 $15 Rxa3+ 38. bxa3) 37... Ra6 {[%emt 0:00:16]} 38. Ra2 {[%emt 0:00:16]} Kg6 {[%emt 0:00:45]} 39. Rb7 {[%emt 0:00:33]} f5 {[%emt 0:00:42]} 40. b4 Rc8 {[%emt 0:01:40] Prevents c5.} 41. b5 {[%emt 0:31:01]} (41. c5 $142 dxc5 42. b5) 41... Ra5 $19 {[%emt 0:02:30]} 42. Rd7 {[%emt 0:00:00]} Rxc4 {[%emt 0:00:06] aiming for ...Rc3+.} 43. Rxd6+ {[%emt 0:00:00]} Kg5 {[%emt 0:00:06]} 44. Rc6 $2 {[%emt 0:00:00]} (44. Rb6) 44... Rxc6 {[%emt 0:06:09]} 45. dxc6 {[%emt 0:00:00]} Rxb5 {[%emt 0:00:05]} 46. Rxa3 {[%emt 0:00:00] KR-KR} Rc5 {[%emt 0:00:06]} 47. Ra6 {[%emt 0:00:00]} Kf4 {[%emt 0:00:35]} 48. Kg2 {[%emt 0:00:00]} h5 {[%emt 0:00:21][%cal Bh6h5,Bh5h4,Bh4h3][%mdl 32] White must now prevent ...h4.} 49. Rb6 {[%emt 0:00:00]} h4 {[%emt 0:00:47]} 50. Ra6 {[%emt 0:00:00]} e4 {[%emt 0:00:33] ( -> ...Rc3)} 51. Rb6 {[%emt 0:00:00]} Rc3 {[%emt 0:00:51]} 52. Ra6 {[%emt 0:00:00]} h3+ {[%emt 0:00:54]} 53. Kh2 {[%emt 0:00:00]} Kf3 {[%emt 0:00:22]} 54. Ra5 {[%emt 0:00:00]} f4 {[%emt 0:00:21] Black used his chance.  Weighted Error Value: White=1.06/Black=0.38} 0-1

[Event "13th Dolomiti-Forni di Sopra-A 2022"]
[Site "Forni di Sopra"]
[Date "2022.06.16"]
[Round "6.12"]
[White "Lavorgna, Giovanni"]
[Black "Fiorido, Giuseppe"]
[Result "0-1"]
[ECO "E01"]
[WhiteElo "1834"]
[BlackElo "2002"]
[Annotator "TA"]
[PlyCount "98"]
[EventDate "2022.06.13"]
[EventType "swiss"]
[EventCountry "ITA"]
[SourceTitle "playchess.com"]
[Source "ChessBase"]
[SourceQuality "1"]
[TimeControl "40/5400+30:1800+30"]

{[%evp 14,98,21,17,51,49,51,48,64,30,32,32,41,37,52,56,58,59,122,128,135,95,139,78,101,91,175,45,42,0,0,-121,-127,-116,-125,-115,-85,-111,-107,-131,-109,-112,-97,-151,-137,-132,-132,-143,-151,-161,-143,-214,-212,-209,-195,-208,-202,-266,-249,-240,-241,-300,-232,-246,-221,-212,-195,-249,-165,-319,-316,-327,-317,-453,-437,-437,0,-383,0,-420,0,-378,0,-387,0,-359,0]} 1. d4 {[%emt 0:00:02]} d5 {[%emt 0:00:24]} 2. Nf3 {[%emt 0:00:24]} Nf6 {[%emt 0:00:08]} 3. c4 {[%emt 0:00:33]} e6 {[%emt 0:00:08]} 4. g3 {[%emt 0:00:46]} Bd6 {[%emt 0:03:51]} 5. Bg2 {[%emt 0:00:57]} c6 {[%emt 0:00:23]} 6. Nc3 {[%emt 0:02:48]} O-O {[%emt 0:05:45]} 7. O-O {[%emt 0:01:05]} Nbd7 {[%emt 0:02:03]} 8. Nd2 Bb4 {[%emt 0:09:57] E01: Catalan: Early deviations.} 9. e4 {[%emt 0:09:46]} Bxc3 {[%emt 0:01:09]} 10. bxc3 {[%emt 0:00:11]} dxe4 {[%emt 0:00:27] White is slightly better.} 11. Nxe4 {[%emt 0:00:41]} Nxe4 {[%emt 0:01:54]} 12. Bxe4 {[%emt 0:00:15]} Qa5 {[%emt 0:00:11] [#]} 13. Qd3 $146 {[%emt 0:03:31]} ({Predecessor:} 13. Qc2 Nf6 14. Bg2 e5 15. Bg5 exd4 16. Bxf6 d3 17. Qxd3 gxf6 18. Rfe1 Be6 19. Qd4 {0-1 (28) Radovanovic,J (2333)-Muratovic,E (2369) Kragujevac 2015}) 13... Nf6 {[%emt 0:01:51]} 14. Bg2 {[%emt 0:00:43]} Rd8 {[%emt 0:08:05]} 15. Re1 {[%emt 0:16:06]} h6 {[%emt 0:21:28]} (15... e5 $14) 16. Bf4 $16 {[%emt 0:03:30]} Bd7 {[%emt 0:08:46]} 17. Rab1 {[%emt 0:08:49]} Qa6 {[%emt 0:00:47][%cal Of6d5]} 18. Bf1 {[%emt 0:05:19] A strong pair of Bishops.} ({Better is} 18. Qd2) 18... c5 {[%emt 0:02:49]} 19. Qd2 {[%emt 0:02:41]} Bc6 {[%emt 0:04:50] [#]} (19... Rac8 $16) 20. Bxh6 $1 {[%emt 0:11:18][%mdl 512]} Be4 $1 $14 {[%emt 0:02:52]} (20... gxh6 $2 21. Qxh6 Be4 22. Qxf6 Bxb1 23. Rxb1 $16) 21. Qg5 {[%emt 0:04:38][%csl Gh6][%cal Rg5g7]} Bg6 {[%emt 0:00:16]} 22. Rbd1 {[%emt 0:06:40] [#]} Nh7 $1 $17 {[%emt 0:01:16]} (22... Nd7 $6 23. dxc5 gxh6 24. Qe7 $14) 23. Qf4 {[%emt 0:01:26]} gxh6 {[%emt 0:00:19]} 24. Qxh6 {[%emt 0:00:57]} Qd6 {[%emt 0:01:23]} 25. Bd3 {[%emt 0:03:20]} Qf8 {[%emt 0:00:42]} 26. Qf4 {[%emt 0:00:14]} Qg7 {[%emt 0:01:17][%cal Rc5d4]} 27. Bxg6 {[%emt 0:01:17]} Qxg6 {[%emt 0:01:46]} 28. d5 {[%emt 0:01:15]} ({White should try} 28. h4) 28... Ng5 {[%emt 0:04:16] Threatens to win with ...Nh3+.} 29. Kg2 {[%emt 0:01:01] [#] Inhibits Nh3.} Qf5 $1 {[%emt 0:01:07]} 30. Qxf5 {[%emt 0:01:02]} exf5 {[%emt 0:00:01]} 31. Re7 {[%emt 0:00:48]} b6 {[%emt 0:01:38]} ({Worse is} 31... Ne4 32. Rxb7 Nd6 33. Rc7 $15) 32. Re5 {[%emt 0:03:26]} (32. f3 $17) 32... Ne4 {[%emt 0:00:04]} 33. Rxf5 {[%emt 0:00:42]} Nxc3 {[%emt 0:00:02]} 34. Rd3 {[%emt 0:00:28]} Ne4 {[%emt 0:00:06]} ({And not} 34... Nxa2 35. Rdf3 $17) 35. Rdf3 {[%emt 0:01:24]} Nd6 {[%emt 0:00:01]} 36. Rg5+ {[%emt 0:00:49]} Kf8 {[%emt 0:00:29]} 37. Rf4 {[%emt 0:01:10]} Ke7 {[%emt 0:00:47]} 38. h4 {[%emt 0:01:36]} Rg8 {[%emt 0:00:41]} 39. Re5+ {[%emt 0:00:36]} Kd7 {[%emt 0:00:23]} 40. Re3 {[%emt 0:00:43]} (40. g4 $142) 40... Rge8 {[%emt 0:00:38]} 41. Ref3 $2 {[%emt 0:36:18]} (41. g4 {keeps fighting.}) 41... Re2 $19 {[%emt 0:30:54]} 42. a3 {[%emt 0:00:23]} Rae8 {[%emt 0:00:11]} 43. Rf6 {[%emt 0:00:00]} (43. g4 {was called for.}) 43... R2e4 {[%emt 0:00:00]} 44. R6f4 {[%emt 0:01:00]} Re2 {[%emt 0:01:00]} 45. Rf6 $1 {[%emt 0:00:00]} R2e4 {[%emt 0:00:00]} 46. R6f4 $1 {[%emt 0:01:00]} Re2 {[%emt 0:01:00]} 47. Rf6 $1 {[%emt 0:00:00]} R2e4 {[%emt 0:00:00]} 48. R6f4 $1 {[%emt 0:01:00]} Re2 {[%emt 0:01:00]} 49. Rf6 $1 {[%emt 0:00:00]} R2e4 $2 {[%emt 0:00:00][%mdl 32768] Weighted Error Value: White=0.22 (precise) /Black=0.56. Loss on time!?} ({Avoid the trap} 49... Nxc4 $2 50. Rxf7+ Kd6 51. R3f6+ Ke5 52. Kf1 Kxd5 53. Rxa7 $19) (49... Rc2 $19 50. Rh6 Rf8) 0-1